{"text_format":"3","workbook":"xlsx","n_sheets":1,"sheets":["Sheet1"],"read":"whole","date_system":"1900"}

{"sheet":"Sheet1","index":0,"n_rows":758,"n_cols":5,"rows_kept":758,"merged":[[0,1,0,2],[1,1,1,5],[2,1,2,4],[3,1,3,4],[5,1,5,4],[6,1,6,4],[7,1,7,4],[8,1,8,4],[9,1,9,4],[10,1,10,4],[11,1,11,4],[12,1,12,4],[13,1,13,4],[14,1,14,4],[15,1,15,5],[16,1,16,4],[29,1,29,4],[30,1,30,4],[38,1,38,4],[39,1,39,4],[43,1,43,4],[44,1,44,4],[45,1,45,4],[46,1,46,4],[47,1,47,4],[48,1,48,4],[49,1,49,4],[50,1,50,4],[51,1,51,4],[52,1,52,4],[53,1,53,4],[54,1,54,4],[55,1,55,4],[56,1,56,4],[57,1,57,4],[58,1,58,4],[59,1,59,4],[60,1,60,4],[61,1,61,4],[62,1,62,4],[63,1,63,4],[64,1,64,5],[77,1,77,4],[78,1,78,4],[90,1,90,4],[91,1,91,4],[100,1,100,4],[101,1,101,4],[108,1,108,3],[109,1,109,4],[110,1,110,4],[111,1,111,4],[112,1,112,4],[113,1,113,4],[114,1,114,4],[115,1,115,4],[116,1,116,4],[117,1,117,4],[118,1,118,4],[119,1,119,4],[120,1,120,4],[122,1,122,4],[123,1,123,4],[125,1,125,4],[126,1,126,4],[127,1,127,4],[140,1,140,4],[141,1,141,4],[153,1,153,4],[155,1,155,4],[156,1,156,4],[157,1,157,4],[158,1,158,4],[159,1,159,4],[160,1,160,4],[161,1,161,4],[162,1,162,4],[163,1,163,4],[164,1,164,4],[165,1,165,4],[166,1,166,4],[167,1,167,4],[168,1,168,4],[169,1,169,4],[170,1,170,4],[171,1,171,4],[172,1,172,4],[173,1,173,4],[174,1,174,4],[190,1,190,4],[192,1,192,4],[193,1,193,4],[194,1,194,4],[195,1,195,4],[196,1,196,4],[197,1,197,4],[198,1,198,4],[199,1,199,4],[200,1,200,4],[201,1,201,4],[202,1,202,4],[203,1,203,4],[204,1,204,4],[205,1,205,4],[206,1,206,4],[207,1,207,4],[208,1,208,4],[209,1,209,4],[210,1,210,4],[223,1,223,4],[226,1,226,4],[227,1,227,4],[228,1,228,4],[229,1,229,4],[230,1,230,4],[231,1,231,4],[232,1,232,4],[233,1,233,4],[234,1,234,4],[235,1,235,4],[248,1,248,4],[249,1,249,4],[264,1,264,4],[265,1,265,4],[276,1,276,4],[277,1,277,4],[279,1,279,4],[280,1,280,4],[282,1,282,4],[283,1,283,4],[284,1,284,4],[285,1,285,4],[286,1,286,4],[295,1,295,4],[296,1,296,4],[310,1,310,4],[311,1,311,4],[319,1,319,4],[320,1,320,4],[339,1,339,4],[340,1,340,4],[359,1,359,4],[360,1,360,4],[374,1,374,5],[376,1,376,5],[393,1,393,4],[394,1,394,4],[411,1,411,4],[414,1,414,4],[415,1,415,4],[416,1,416,4],[417,1,417,4],[418,1,418,4],[419,1,419,4],[420,1,420,4],[421,1,421,4],[422,1,422,4],[423,1,423,4],[424,1,424,4],[426,1,426,4],[427,1,427,4],[428,1,428,4],[442,1,442,4],[443,1,443,4],[459,1,459,4],[460,1,460,4],[474,1,474,4],[475,1,475,4],[489,1,489,4],[490,1,490,4],[509,1,509,5],[510,1,510,4],[517,1,517,5],[518,1,518,4],[519,1,519,4],[530,1,530,4],[531,1,531,4],[533,1,533,4],[534,1,534,4],[535,1,535,4],[536,1,536,4],[537,1,537,4],[538,1,538,4],[539,1,539,4],[540,1,540,4],[541,1,541,4],[542,1,542,4],[543,1,543,4],[544,1,544,4],[545,1,545,4],[546,1,546,4],[547,1,547,4],[548,1,548,4],[549,1,549,4],[550,1,550,4],[551,1,551,4],[553,1,553,4],[554,1,554,4],[555,1,555,4],[556,1,556,5],[574,1,574,4],[575,1,575,4],[589,1,589,4],[590,1,590,4],[606,1,606,4],[607,1,607,4],[626,1,626,4],[627,1,627,4],[636,1,636,4],[637,1,637,4],[651,1,651,4],[660,1,660,4],[661,1,661,4],[669,1,669,3],[670,1,670,4],[671,1,671,4],[672,1,672,4],[680,1,680,4],[681,1,681,4],[693,1,693,4],[694,1,694,4],[705,1,705,3],[706,1,706,4],[707,1,707,4],[708,1,708,4],[709,1,709,4],[720,1,720,4],[721,1,721,4],[734,1,734,4],[735,1,735,4],[746,1,746,5],[747,1,747,5],[751,2,751,4],[752,1,752,5],[754,1,754,4],[755,1,755,4],[756,1,756,4],[757,1,757,4],[758,1,758,4]]}
[null,"ANNEXURE B: SPECIFICATIONS "]
["l","NOTE: THE TOTAL PRICE PER KIT FOR EACH YEAR MUST BE TYPED IN THE WHITE CELLS. THE TOTAL FOR EACH SPECIALISATION AND THE GRAND TOTAL FOR ALL SPECIALISATIONS WILL ADD AUTOMATICALLY. A HARD COPY SHOULD BE SIGNED ON EACH PAGE AND THE NAME OF THE COMPANY COMPLETED IN THE SPACE PROVIDED. THE SIGNED HARD COPIES FORM PART OF THE BID DOCUMENTS TO BE SUBMITTED."]
["l","SUPPLY AND DELIVERY OF CONSUMABLES PER SUBJECT A TO M TO TECHNICAL, COMPREHENSIVE, AGRICULTURAL AND SCHOOLS OF SKILLS IN THE FREE STATE AS INDICATED BELOW.  "]
["l","THE FREE STATE DEPARTMENT OF EDUCATION RESERVES THE RIGHT TO PROCURE QUANTITIES BASED ON THE AVAILABLE BUDGET. BIDDERS SHOULD SUPPLY PRICING PER KIT AND NOT FOR INDIVIDUAL SUB-ITEMS."]
["A","FITTING & MACHINING "]
[1,"SASOLBURG: HTS Sasolburg, Sasolburg"]
[2,"SASOLBURG: Iketsetseng Comprehensive School, Zamdela"]
[3,"KROONSTAD: Dr Reginald Cingo Comprehensive School, Maokeng"]
[4,"WELKOM: HTS Welkom, Welkom"]
[5,"WELKOM: Leseding THS, Thabong"]
[6,"BLOEMFONTEIN: HTS Louis Botha, Bloemfontein"]
[7,"BLOEMFONTEIN: Hodisa THS, Mangaung"]
[8,"FICKSBURG: Ficksburg Comprehensive School, Ficksburg"]
[9,"QWAQWA, PHUTHADITJHABA: Makabelane Comprehensive School, Qwaqwa"]
[10,"HARRISMITH: Lerato Uthando, Intabazwe"]
[null,"COMPANY NAME: ………………………………………………    "]
[null,"SIGNATURE :……………………………………………"]
[null,"MATERIALS TO BE DELIVERED TO EACH OF THE 10 SCHOOLS LISTED ABOVE ","Year ONE         Supply and delivery, including VAT","Year TWO       Supply and delivery, including VAT","Year THREE       Supply and delivery, including VAT"]
["A1","Fitting & Machining Kit consisting of sub-items 1.1. to 1.13  (Price per kit including VAT and delivery)"]
["1.1","10 x 1 m length Aluminium Roundbar ±25 mm diameter"]
["1.2","10 x 1 m length Aluminium Roundbar ±40 mm diameter"]
["1.3","5 x 1 m length Aluminium Roundbar ±50 mm diameter"]
["1.4","3 x 1 m length Aluminium Roundbar ±75 mm diameter"]
["1.5","10 x 1 m length Nylon/PVC Roundbar ±25 mm diameter"]
["1.6","10 x 1 m length Nylon/PVC Roundbar ±40 mm diameter"]
["1.7","10 x 1 m length Nylon/PVC Roundbar ±50 mm diameter"]
["1.8","5 x 1 m length Nylon/PVC Roundbar ±75 mm diameter"]
["1.9","10 x 3 m length x ±12 mm diameter mild steel round bar "]
["1.10","10 x blocks: 400 x 400 mm x 4 mm thick hot rolled mild steel sheeting"]
[null,"COMPANY NAME: ……………………………………………………………...…"]
[null,"SIGNATURE :……………………………………………...."]
[]
[null,"MATERIALS TO BE DELIVERED TO EACH OF THE 10 SCHOOLS LISTED ABOVE ","Year ONE         Supply and delivery, including VAT","Year TWO       Supply and delivery, including VAT","Year THREE       Supply and delivery, including VAT"]
["1.11","10 x interchangeable (triangular) tungsten tips for lathe cutting tools"]
["1.12","50 x M10 mild steel Nuts"]
["1.13","10 x Aluminium flat bars 1m x 25mm x 10mm"]
[null,"SUB-TOTAL for ONE FITTING & MACHINING KIT  (A1) including VAT and Delivery to ONE school",{"$f":"C19","v":{"v":0,"d":"R0.00"}},{"$f":"D19","v":{"v":0,"d":"R0.00"}},{"$f":"E19","v":{"v":0,"d":"R0.00"}}]
[null,"TOTAL including VAT and Delivery to 10 schools",{"$f":"(C37*10)","v":{"v":0,"d":"R0.00"}},{"$f":"(D37*10)","v":{"v":0,"d":"R0.00"}},{"$f":"(E37*10)","v":{"v":0,"d":"R0.00"}}]
[null,"COMPANY NAME: ……………………………………………………………...…"]
[null,"SIGNATURE :……………………………………………...."]
[]
[]
["B","WELDING & METALWORK"]
[1,"SASOLBURG: HTS Sasolburg, Sasolburg"]
[2,"SASOLBURG: Iketsetseng Comprehensive School, Zamdela"]
[3,"SASOLBURG: Thuto Ke Lesedi Technical School, Zamdela"]
[4,"PARYS: Barnard Molokoane Comprehensive School, Tumahole"]
[5,"KROONSTAD: Thakameso Comprehensive School, Maokeng"]
[6,"WELKOM: HTS Welkom, Welkom"]
[7,"WELKOM: Lenakeng Comprehensive School, Thabong"]
[8,"WELKOM: Leseding THS, Thabong"]
[9,"VIRGINIA: Hentie Cilliers Comprehensive School, Virginia"]
[10,"BOTHAVILLE: Oziel Selele Comprehensive School, Kgotsong"]
[11,"HOOPSTAD: Tikwana Comprehensive School, Tikwana "]
[12,"BLOEMFONTEIN: HTS Louis Botha, Bloemfontein"]
[13,"BLOEMFONTEIN: Heatherdale,  Heidedal"]
[14,"BLOEMFONTEIN: Hodisa THS, Mangaung"]
[15,"BLOEMFONTEIN: Commtech Comprehensive, Mangaung"]
[16,"BLOEMFONTEIN: Kagisho Comprehensive School, Mangaung"]
[17,"BOTSHABELO: Lenyora la Thuto Comprehensive School, Botshabelo"]
[18,"BETHLEHEM: Bethlehem Comprehensive School, Bohlokong"]
[19,"QWA QWA, PHUTHADITJHABA: Makabelane Comprehensive School, Qwaqwa"]
[20,"QWA QWA, PHUTHADITJHABA: Morena Mokopela Comprehensive, Phuthaditjhaba "]
[21,"HARRISMITH: Lerato Uthandu Comprehensive School, Intabazwe"]
[null,"COMPANY NAME: ………………………………………………      SIGNATURE :……………………………………"]
[null,"MATERIALS TO BE DELIVERED TO EACH OF THE 21 SCHOOLS LISTED ABOVE ","Year ONE         Supply and delivery, including VAT","Year TWO       Supply and delivery, including VAT","Year THREE       Supply and delivery, including VAT"]
["B1","Welding & Metalwork Kit  consisting of sub-items 1.1. to 1.22   (Price per kit including VAT and delivery)"]
["1.1","6 x 3 meter length  x ±8 mm diameter mild steel round bar "]
["1.2","6 x 3 meter length  x ±10 mm diameter mild steel round bar "]
["1.3","6 x 3 meter length  x ±13 mm diameter mild steel round bar "]
["1.4","6 x 3 meter length  x ±15 mm dia mild steel hollow round bar/pipe"]
["1.5","6 x 3 meter length  x ±25 mm dia mild steel hollow round bar/pipe"]
["1.6","6 x 3 meter length  x ±40 mm dia mild steel hollow round bar/pipe"]
["1.7","6 x 3 meter length  x ±15 mm mild steel square tube (NOT bar)"]
["1.8","12 x 3 meter length  x ±100 mm mild steel square tube (NOT bar)"]
["1.9","6 x 3 meter length  x ±40 mm mild steel square tube (NOT bar)"]
["1.10","4 x 3 meter length  x ±50 mm mild steel square tube (NOT bar)"]
[null,"COMPANY NAME: ……………………………………………………………...…"]
[null,"SIGNATURE: ……………………………………………...."]
[null,"MATERIALS TO BE DELIVERED TO EACH OF THE 21 SCHOOLS LISTED ABOVE ","Year ONE         Supply and delivery, including VAT","Year TWO       Supply and delivery, including VAT","Year THREE       Supply and delivery, including VAT"]
["1.11","6 x 3 meter length  x  ±5 x 20 mm mild steel flat bar "]
["1.12","6 x 3 meter length  x  ±5 x 40 mm mild steel flat bar "]
["1.13","4 x 3 meter length  x  ±6 x 100 mm mild steel flat bar "]
["1.14","12 x 3 meter length x ±5 x 25 x 25 mm mild steel Angle Iron"]
["1.15","4 x 3 meter length x ±5 x 38 x 38 mm mild steel Angle Iron "]
["1.16","4 x 3 meter length x ±5 x 50 x 50 mm mild steel Angle Iron"]
["1.17","3 sheets ±1220 x 2440 mm x 1,0 mm thick hot rolled m/s sheet"]
["1.18","4 sheets ±1220 x 2440 mm x 2 mm thick hot rolled m/s sheet"]
["1.19","2 sheets ±1220 x 2440 mm x 0,6 mm thick galvanised sheeting"]
["1.20","4 x 5kg ± 2,5 sq mm Arc Welding electrodes "]
[null,"COMPANY NAME: ……………………………………………………………...…"]
[null,"SIGNATURE: ……………………………………………...."]
[null,"MATERIALS TO BE DELIVERED TO EACH OF THE 21 SCHOOLS LISTED ABOVE ","Year ONE         Supply and delivery, including VAT","Year TWO       Supply and delivery, including VAT","Year THREE       Supply and delivery, including VAT"]
["1.21","4 x 5kg ± 2,8 sq mm Arc Welding electrodes "]
["1.22","1 x 5kg ± 3 sq mm Brazing rods for gas welding"]
["1.23","1 x 5kg ± 3 sq mm Brazing rods for gas welding"]
["1.24","10  x 230 mm Grinder cutting dics(Steel)"]
["1.25","20 x 115 mm Grinder cutting discs(Steel)"]
[null,"SUB-TOTAL for ONE WELDING & METALWORK KIT  (B1) including VAT and Delivery to ONE school",{"$f":"C67","v":{"v":0,"d":"R0.00"}},{"$f":"D67","v":{"v":0,"d":"R0.00"}},{"$f":"E67","v":{"v":0,"d":"R0.00"}}]
[null,"SUB TOTAL including VAT and Delivery to 21 schools listed",{"$f":"(C99*21)","v":{"v":0,"d":"R0.00"}},{"$f":"(D99*21)","v":{"v":0,"d":"R0.00"}},{"v":0,"d":"R0.00"}]
[null,"COMPANY NAME: ……………………………………………………………...…"]
[null,"SIGNATURE: ……………………………………………...."]
[]
["C","AGRICULTURAL TECHNOLOGY "]
[1,"VREDE: Vrede Secondary School, Vrede"]
[2,"HEILBRON: Heilbron Secondary School, Heilbron"]
[3,"FRANKFORT: Wilgerivier Secondary School, Frankfort"]
[4,"REITZ: Reitz Secondary School, Reitz"]
[5,"QWAQWA, PHUTHADITJHABA: Seotlong Agricultural  School, Phuthaditjhaba,10 km from town"]
[6,"DEWETSDORP: Jimmy Roos Special School, Dewetsdorp, 20 km from town"]
[7,"TWEESPRUIT: Unicom Secondary School, Tweespruit, 10 km from town"]
[8,"BLOEMFONTEIN: Martie du Plessis Special School, Bloemfontein"]
[9,"BLOEMFONTEIN: President Steyn Secondary School, Bloemfontein, 30 km from city "]
[10,"REDDERSBURG: Hendrik Potgieter Agricultural School, Reddersburg"]
[11,"JACOBSDAL: Landboudal Agricultural School, Jacobsdal"]
[12,"BULTFONTEIN: Bultfontein Secondary School, Bultfontein"]
[13,"HOOPSTAD: Hoopstad Secondary School, Hoopstad "]
[14,"HOOPSTAD: Tikwana Comprehensive School, Tikwana"]
[15,"VIRGINIA: Hentie Cilliers Comprehensive School, Virginia"]
[16,"HENNENMAN: Hennenman Secondary School, Hennenman"]
[17,"BOTHAVILLE: Nampo Agricultural School, Bothaville, 15 km from town on R30 in direction of Orkney"]
[18,"BOTHAVILLE: Bothaville High school, Bothaville"]
[19,"BOTHAVILLE: Bovaal Agricultural School, Bothaville, 30 km from town on R30 in direction of Hoopstad  "]
[20,"KROONSTAD: TRIO Comprehensive School, Kroonstad"]
[21,"BETHLEHEM: Witteberg, Bethlehem"]
[22,"PARYS: Weiveld Agricultural School, Parys, 30 km from town"]
[23,"ZASTRON: Zastron CS, Zastron"]
[null,"COMPANY NAME: …………………………………………………SIGNATURE: …………………………………………"]
[null,"MATERIALS TO BE DELIVERED TO EACH OF THE 22 SCHOOLS LISTED ABOVE ","Year ONE         Supply and delivery, including VAT","Year TWO       Supply and delivery, including VAT","Year THREE       Supply and delivery, including VAT"]
["C1","ATECH KIT consisting of sub-items 1.1. to 1.16   (Price per kit including VAT and delivery)"]
["1.1","10 x 6 meter length  x ±10 mm diameter mild steel round bar "]
["1.2","22 x 6 meter length  x ±10 mm diameter mild steel square bar "]
["1.3","20 x 6 meter length  x ±2 x 20 mm dia mild steel hollow round bar/pipe"]
["1.4","21 x 6 meter length  x ±2 x 25 mm dia mild steel hollow round bar/pipe"]
["1.5","24 x 6 meter length  ± 2 x 20 x 20 mm mild steel square tube (NOT bar)"]
["1.6","15 x 6 meter length ±2 x 25 x 25 mm mild steel square tube (NOT bar) "]
["1.7","10 x 6 meter length ±3 x 100 x 100 mm mild steel square tube (NOT bar)"]
["1.8","6 x 6 meter length  x ±3 x 30 mm mild steel flat bar "]
["1.9","12 x 6 meter length  x ±3 x 50 mm mild steel flat bar "]
["1.10","15 x 6 meter length x ±3 x 30 x 30 mm mild steel Angle Iron"]
[null,"COMPANY NAME: ……………………………………………………………...…"]
[null,"SIGNATURE: ……………………………………………...."]
[null,"MATERIALS TO BE DELIVERED TO EACH OF THE 22 SCHOOLS LISTED ABOVE ","Year ONE         Supply and delivery, including VAT","Year TWO       Supply and delivery, including VAT","Year THREE       Supply and delivery, including VAT"]
["1.11","11 x 6 meter length x ± 2 x 38 x 38 mm mild steel Angle Iron"]
["1.12","5 sheets ±1220 x 2440 mm x ±1,5 mm thick hot rolled m/s sheet"]
["1.13","5 sheets ±1220 x 2440 mm x ± 2,0mm thick diamond mesh 15 mm x 40mm sheet"]
["1.14","4 x 5kg ± 2,5 sq mm Arc Welding electrodes "]
["1.15","4 x 5kg ± 3,0 sq mm Arc Welding electrodes "]
["1.16","1 x 5kg ± 3 sq mm Brazing rods for gas welding"]
["1.17","10  x 230 mm Grinder cutting dics(Steel)"]
["1.18","20 x 115 mm Grinder cutting discs(Steel)"]
[null,"SUB-TOTAL for ONE ATECH KIT (C1) including VAT and Delivery to ONE school",{"$f":"C130","v":{"v":0,"d":"R0.00"}},{"$f":"D130","v":{"v":0,"d":"R0.00"}},{"$f":"E130","v":{"v":0,"d":"R0.00"}}]
[null,"TOTAL including VAT and Delivery to 22 schools",{"$f":"(C152*22)","v":{"v":0,"d":"R0.00"}},{"$f":"(D152*22)","v":{"v":0,"d":"R0.00"}},{"v":0,"d":"R0.00"}]
[null,"COMPANY NAME: …………………………………………………SIGNATURE: …………………………………………"]
["D","CONSTRUCTION "]
[1,"SASOLBURG: HTS Sasolburg, Sasolburg"]
[2,"SASOLBURG: Iketsetseng Comprehensive, Zamdela"]
[3,"SASOLBURG: Thuto Ke Lesedi Technical School, Zamdela"]
[4,"PARYS: Barnard Molokoane Comprehensive School, Tumahole"]
[5,"KROONSTAD: Trio Secondary School (Blouskool) "]
[6,"KROONSTAD: Thakameso Comprehensive School, Maokeng"]
[7,"WELKOM: HTS Welkom, Welkom "]
[8,"WELKOM: Leseding THS, Thabong"]
[9,"HOOPSTAD: Tikwana Comprehensive,  Tikwana "]
[10,"BLOEMFONTEIN: HTS Louis Botha, Bloemfontein"]
[11,"BLOEMFONTEIN: Sand du Plessis Secondary School, Bloemfontein"]
[12,"BLOEMFONTEIN: Hodisa THS, Mangaung"]
[13,"BLOEMFONTEIN: Kagisho Comprehensive School, Mangaung"]
[14,"BOTSHABELO: Lenyora la Thuto Comprehensive School, Botshabelo"]
[15,"FICKSBURG: Ficksburg Comprehensive School, Ficksburg"]
[16,"SENEKAL: EE Monese Secondary School, Matwabeng"]
[17,"QWAQWA, PHUTHADITJHABA: Makabelane Comprehensive School, Qwaqwa"]
[18,"KOFFIEFONTEIN: Koffiefontein Combined School, Koffiefontein"]
[null,"COMPANY NAME: ……………………………………………………………...…"]
[null,"SIGNATURE: ……………………………………………...."]
[null,"MATERIALS TO BE DELIVERED TO EACH OF THE 18 SCHOOLS LISTED ABOVE ","Year ONE         Supply and delivery, including VAT","Year TWO       Supply and delivery, including VAT","Year THREE       Supply and delivery, including VAT"]
["D1","CONSTRUCTION KIT  consisting of sub-items 1.1. to 1.11 (Price per kit including VAT and delivery)"]
["1.1","10 x Class A Presswood boards: ±2 700 x 1 800 x ±16 mm thick"]
["1.2","20 x Shutter boards: ±2 440 x 1 220 x 22 mm thick"]
["1.3","10 x SA Pine 114 x 38mm x 4,8 meter lengths"]
["1.4","10 x SA Pine 76 x 50mm x 4,8 meter lenghts"]
["1.5","20 Bags 42.5 Mpa sement"]
["1.6","6 cube meter Plaster sand"]
["1.7","6 cube meter ± 6 mm Crusher Dust "]
["1.8","1 pallets semi face bricks ±220 x 110 x 75 mm in size"]
["1.9","1 pallets sement building bricks ±220 x 110 x 75 mm in size"]
["1.10","5 x 50kg bags of lime"]
["1.11","10 x Galvanised sheeting 2400 x 2100 x 0,6 mm thickness"]
[null,"SUB-TOTAL for ONE CONSTRUTION KIT (D1) including VAT and Delivery to ONE school",{"$f":"C177","v":{"v":0,"d":"R0.00"}},{"$f":"D177","v":{"v":0,"d":"R0.00"}},{"$f":"E177","v":{"v":0,"d":"R0.00"}}]
[null,"TOTAL including VAT and Delivery to 18 schools",{"$f":"(C189*18)","v":{"v":0,"d":"R0.00"}},{"$f":"(D189*18)","v":{"v":0,"d":"R0.00"}},{"v":0,"d":"R0.00"}]
[null,"COMPANY NAME: …………………………………………SIGNATURE: ……………………………………………...."]
["E","WOODWORKING"]
[1,"PARYS: Barnard Molokoane Comprehensive School, Tumahole"]
[2,"KROONSTAD: Dr Reginald Cingo, Maokeng "]
[3,"KROONSTAD: Thakameso Comprehensive school, Maokeng"]
[4,"WELKOM: Leseding THS, Thabong"]
[5,"WELKOM: Lenakeng,Thabong"]
[6,"BOTHAVILLE: Oziel Selele Comprehensive School, Kgotsong"]
[7,"HOOPSTAD: Tikwana Comprehensive School, Tikwana "]
[8,"BLOEMFONTEIN:  HTS Louis Botha, Bloemfontein"]
[9,"BLOEMFONTEIN: Hodisa THS, Mangaung"]
[10,"BLOEMFONTEIN: Commtech Comprehensive School, Mangaung"]
[11,"BLOEMFONTEIN: Kagisho Comprehensive School, Mangaung "]
[12,"BLOEMFONTEIN: Heatherdale, Heidedal"]
[13,"BOTSHABELO: Lenyora la Thuto Comprehensive School, Botshabelo"]
[14,"SENEKAL: EE Monese Comprehensive School, Matwabeng"]
[15,"BETHLEHEM: Bethlehem Comprehensive School, Thabong"]
[16,"BETHLEHEM: Voortrekker Comprehensive School, Bethlehem"]
[17,"QWAQWA, PHUTHADITJHABA: Makabelane Comprehensive School, Qwaqwa"]
[null,"COMPANY NAME: ……………………………………………………………...…"]
[null,"SIGNATURE: ……………………………………………...."]
[null,"MATERIALS TO BE DELIVERED TO EACH OF THE 17 SCHOOLS LISTED ABOVE ","Year ONE         Supply and delivery, including VAT","Year TWO       Supply and delivery, including VAT","Year THREE       Supply and delivery, including VAT"]
["E1","WOODWORKING KIT consisting of sub-items 1.1. to 1.8   (Price per kit including VAT and delivery)"]
["1.1","50 x Meranti Hardwood ±152 x 25 mm x 2,7 meter lengths"]
["1.2","50 x Meranti Hardwood ±152 x 25 mm x 2,4 meter lengths"]
["1.3","50 x Meranti Hardwood ±152 x 38 mm x 3,35 meter lengths"]
["1.4","50 x Meranti Hardwood ±152 x 38 mm x 4,6 meter lengths"]
["1.5","20 x paint brushes set (12mm, 25mm, 38mm, 50mm, 63mm pack)"]
["1.6","10 Litre Gripseal wood sealant"]
["1.7","10 x sponge brushes/"]
["1.8","20 x ±1litre Cold Wood Glue"]
[null,"SUB-TOTAL for ONE WOODWORKING KIT (D1) including VAT and Delivery to ONE school",{"$f":"C213","v":{"v":0,"d":"R0.00"}},{"$f":"D213","v":{"v":0,"d":"R0.00"}},{"$f":"E213","v":{"v":0,"d":"R0.00"}}]
[null,"TOTAL including VAT and Delivery to 17 schools",{"$f":"(C222*17)","v":{"v":0,"d":"R0.00"}},{"$f":"(D222*17)","v":{"v":0,"d":"R0.00"}},{"v":0,"d":"R0.00"}]
[null,"COMPANY NAME: ………………………………………     SIGNATURE :……………………………………………...."]
["F","CIVIL SERVICES"]
[1,"SASOLBURG: HTS Sasolburg"]
[2,"KROONSTAD: Thakameso Comprehensive School, Maokeng"]
[3,"WELKOM: Leseding THS, Thabong"]
[4,"VIRGINIA: Hentie Cilliers Comprehensive School, Virginia"]
[5,"BLOEMFONTEIN: Hodisa THS, Mangaung"]
[6,"BOTSHABELO: Lenyora la Thuto Comprehensive School, Botshabelo"]
[7,"QWAQWA, PHUTHADITJHABA: Morena Mokopela Comprehensive School, Phuthaditjhaba"]
[8,"QWAQWA, PHUTHADITJHABA: Makabelane Comprehensive School, Qwaqwa"]
[9,"HARRISMITH: Lerato Uthando Comprehensive School, Intabazwe"]
[null,"COMPANY NAME: ……………………………………………………………...…"]
[null,"SIGNATURE :……………………………………………...."]
[]
[]
[]
[null,"MATERIALS TO BE DELIVERED TO EACH OF THE 9 SCHOOLS LISTED ABOVE ","Year ONE         Supply and delivery, including VAT","Year TWO       Supply and delivery, including VAT","Year THREE       Supply and delivery, including VAT"]
["F1","CIVIL SERVICES PAT MATERIAL KIT for Grade 12 consisting of sub-items 1.1. to 1.6   (Price per kit including VAT and delivery)"]
["1.1","40 x Copper water tubing 15 mm class 1 x 4 to 6 meter lengths "]
["1.2","100 x Copper swett on elbows 15 mm"]
["1.3","70 x Copper swett on T-fittings 15 mm"]
["1.4","30 x Solder wire resin core 250 gramm"]
["1.5","20 x Flux past"]
["1.6","2 x Expanded sheet 2400 x 1200 x 1,6 mm"]
["1.7","20 x Galvanised sheeting 2400 x 2100 x 0,6 mm thickness"]
[null,"COMPANY NAME: ……………………………………………………  "]
[null,"SIGNATURE: ……………………………………"]
[]
[]
[null,"MATERIALS TO BE DELIVERED TO EACH OF THE 9 SCHOOLS LISTED ABOVE ","Year ONE         Supply and delivery, including VAT","Year TWO       Supply and delivery, including VAT","Year THREE       Supply and delivery, including VAT"]
["F2","CIVIL SERVICES PAT MATERIAL KITS for Grade 11 consisting of sub-items 2.1. to 2.10  (Price per kit including VAT and delivery)"]
["2.1","50 x Copper water tubing 15 mm class 1 x 4 to 6 meter lengths "]
["2.2","50 x Copper swett on elbows 15 mm"]
["2.3","50 x Copper swett on T-fittings 15 mm"]
["2.4","10 x Solder wire resin core 250 gramm"]
["2.5","5 x flux past"]
["2.6","10 x Galvanised pipe, 4 meter length, Ø 15 mm "]
["2.7","10 x Galvanised elbow, Ø 15 mm"]
["2.8","10 x Galvanised T piece,  Ø 15 mm"]
["2.9","5 x Hemp (thread-sealing material), 50 g"]
["2.10","10 x Galvanised sheeting 2400 x 2100 x 0,6 mm thickness"]
[null,"COMPANY NAME: ……………………………………………………  "]
[null,"SIGNATURE: ……………………………………"]
[null,"MATERIALS TO BE DELIVERED TO EACH OF THE 9 SCHOOLS LISTED ABOVE ","Year ONE         Supply and delivery, including VAT","Year TWO       Supply and delivery, including VAT","Year THREE       Supply and delivery, including VAT"]
["F3","CIVIL SERVICES PAT MATERIAL KITS for Grade 10  consisting of sub-items 3.1. to 3.6  (Price per kit including VAT and delivery)"]
["3.1","10 x Copper water tubing 15 mm class 1 x 4 to 6 meter lengths "]
["3.2","50 x Copper swett on elbows 15 mm"]
["3.3","10 x Copper swett on T-fittings 15 mm"]
["3.4","5 x Solder wire resin core 250 gramm"]
["3.5","5 x flux past"]
["3.6","10 x Galvanised sheeting 2400 x 2100 x 0,6 mm thickness"]
[null,"SUB-TOTAL for CIVIL SERVICES KITS (F1 + F2 + F3) including VAT and Delivery to ONE school",{"$f":"SUM(C241,C254,C268)","v":0},{"$f":"SUM(D241,D254,D268)","v":0},{"$f":"SUM(E241,E254,E268)","v":0}]
[null,"TOTAL including VAT and Delivery to 9 schools",{"$f":"(C275*9)","v":{"v":0,"d":"R0.00"}},{"$f":"(D275*9)","v":{"v":0,"d":"R0.00"}},{"v":0,"d":"R0.00"}]
[null,"COMPANY NAME: ……………………………………………………  "]
[null,"SIGNATURE: ……………………………………"]
["G","DIGITAL SYSTEMS"]
[1,"SASOLBURG: HTS Sasolburg, Sasolburg "]
[2,"SASOLBURG: Iketsetseng Comprehensive School, Zamdela"]
[3,"WELKOM: Leseding THS, Thabong"]
[4,"BLOEMFONTEIN: Hodisa THS, Mangaung"]
[5,"BOTSHABELO: Lenyora la Thuto Comprehensive School, Botshabelo"]
[6,"QWAQWA, PHUTHADITJHABA: Makabelane Comprehensive School, Qwaqwa"]
[null,"COMPANY NAME: ……………………………………………………………...…"]
[null,"SIGNATURE: ……………………………………………...."]
[]
[]
[null,"MATERIALS TO BE DELIVERED TO EACH OF THE 6 SCHOOLS LISTED ABOVE ","Year ONE         Supply and delivery, including VAT","Year TWO       Supply and delivery, including VAT","Year THREE       Supply and delivery, including VAT"]
["G1","PROJECT # 1: Inverting op amp Kit consisting of sub-items 1.1. to 1.4  (Price per kit including VAT and delivery)"]
["1.1","24 x LM 741 op amp"]
["1.2","48 x 10 kΩ for RIN and RF"]
["1.3","24 x 15 kΩ, 22 kΩ, 33 kΩ, 47 kΩ ,56 kΩ and 82 kΩ for RF"]
["1.4","7 meter 0,5mm connecting wires"]
[null,"COMPANY NAME: ……………………………………………………………...…"]
[null,"SIGNATURE: ……………………………………………...."]
[]
[]
[]
[null,"MATERIALS TO BE DELIVERED TO EACH OF THE 6 SCHOOLS LISTED ABOVE ","Year ONE         Supply and delivery, including VAT","Year TWO       Supply and delivery, including VAT","Year THREE       Supply and delivery, including VAT"]
["G2","PROJECT # 2A: Switching circuits using a 555 IC and a 741 op amp Kit  consisting of sub-items 2.1. to 2.8  (Price per kit including VAT and delivery)"]
["2.1","23 x 555 IC "]
["2.2","23 x 100 nF capacitor "]
["2.3","23 x 10 μF (electrolytic capacitor 25 V) "]
["2.4","115 x 1 kΩ resistor "]
["2.5","23 x 10 kΩ potentiometer "]
["2.6","23 x 8 Ω speaker/buzzer "]
["2.7","115 x push buttons "]
["2.8","7 meter 0,5 mm connecting wires"]
[null,"COMPANY NAME: ……………………………………………………………...…"]
[null,"SIGNATURE: ……………………………………………...."]
[]
[null,"MATERIALS TO BE DELIVERED TO EACH OF THE 6 SCHOOLS LISTED ABOVE ","Year ONE         Supply and delivery, including VAT","Year TWO       Supply and delivery, including VAT","Year THREE       Supply and delivery, including VAT"]
["G3","PROJECT # 2B: Schmitt trigger 741 IC  Kit  consisting of sub-items 3.1. to 3.4  (Price per kit including VAT and delivery)"]
["3.1","23 x LM741 op amp "]
["3.2","23 x 1 kΩ resistor "]
["3.3","23 x 10 kΩ potentiometer "]
["3.4","7 meter 0,5mm connecting wires"]
[null,"COMPANY NAME: ……………………………………………………………...…"]
[null,"SIGNATURE: ……………………………………………...."]
[]
[]
[]
[null,"MATERIALS TO BE DELIVERED TO EACH OF THE 6 SCHOOLS LISTED ABOVE ","Year ONE         Supply and delivery, including VAT","Year TWO       Supply and delivery, including VAT","Year THREE       Supply and delivery, including VAT"]
["G4","PROJECT # 4 : Automatic Battery Charger with Battery-voltage Bar-graph Display Kit  consisting of sub-items 4.1. to 4.30  (Price per kit including VAT and delivery)"]
["4.1","23 x varistor 14 mm - R1"]
["4.2","23 x 500 ohm, 5 W - R2"]
["4.3","46 x 15 K ¼ W - R3 and R6"]
["4.4","23 x 230 ohm ¼ W - R4"]
["4.5","23 x 1k - R5"]
["4.6","23 x 0,2 ohm, 5 W - R7"]
["4.7","23 x 3k3 ¼ W - R8"]
["4.8","23 x J1 mains supply "]
["4.9","23 x J2 12 V connector for battery/battery clamps "]
["4.10","23 x 500 mA fast-blow fuse - F1 "]
["4.11","23 x 240 V–16 V transformer 3 A (+/-50 VA) - TRI 1"]
["4.12","23 x 1k2 ¼ W 5% - R9"]
["4.13","23 x 4k7 ¼ W 5% R10"]
[null,"COMPANY NAME: ……………………………………………………  "]
[null,"SIGNATURE: ……………………………………"]
[null,"MATERIALS TO BE DELIVERED TO EACH OF THE 6 SCHOOLS LISTED ABOVE ","Year ONE         Supply and delivery, including VAT","Year TWO       Supply and delivery, including VAT","Year THREE       Supply and delivery, including VAT"]
["4.14","23 x 5k potentiometer - R11"]
["4.15","23 x 5 A diode bridge - B1"]
["4.16","23 x 6 800 uF 35 V electrolytic capacitor - C1"]
["4.17","23 x 0,1 uF ceramic 104 - C2"]
["4.18","23 x 1 nF ceramic 102 - C3"]
["4.19","23 x 1 uF electrolytic 25 volt - C4"]
["4.20","23 x 1N 4148 diode - D1"]
["4.21","23 x LM350 16 volt positive voltage regulator - IC1"]
["4.22","23 x LM301 H operational amplifier - IC2"]
["4.23","23 x On/Off switch for mains voltage - S1"]
["4.24","23 x push-to-make switch - S2"]
["4.25","23 x LED 1 red LED 5 mm "]
["4.26","23 x LM3914 N bar-graph display driver - IC3"]
["4.27","23 x 10 μF 25 volt electrolytic capacitor - C1"]
["4.28","23 x SPST toggle switch - S1"]
["4.29","23 x LED 1–10 LED – red, amber, green "]
["4.30","23 x R12 5k potentiometer "]
[null,"COMPANY NAME: ……………………………………………………  "]
[null,"SIGNATURE: ……………………………………"]
[null,"MATERIALS TO BE DELIVERED TO EACH OF THE 6 SCHOOLS LISTED ABOVE ","Year ONE         Supply and delivery, including VAT","Year TWO       Supply and delivery, including VAT","Year THREE       Supply and delivery, including VAT"]
["G5","PROJECT # 5 : 741 Bistable Multivibrator Kit consisting of sub-items 5.1. to 5.11  (Price per kit including VAT and delivery)"]
["5.1","51 x Resistor 1/4 Watt 5% 1  kΏ "]
["5.2","34 x Resistor 1/4 Watt 5% 470 Ώ "]
["5.3","17 x Resistor 1/4 Watt 5% 560 Ώ"]
["5.4","17 x IC LM741 "]
["5.5","17 x IC Holder x 8 pin Standard"]
["5.6","17 x Electrolytic Capacitor 25V 10 μF"]
["5.7","34 x Tact Switch 3,5 mm "]
["5.8","17 x LED Red 5 mm"]
["5.9","17 x LED Green 5 mm"]
["5.10","17 x Veroboard 10 cm x 5 cm"]
["5.11","7 meter 0,5 mm connecting wires"]
[null,"COMPANY NAME: ……………………………………………………"]
[]
[null,"SIGNATURE: ………………………………………..................."]
[]
[null,"MATERIALS TO BE DELIVERED TO EACH OF THE 6 SCHOOLS LISTED ABOVE ","Year ONE         Supply and delivery, including VAT","Year TWO       Supply and delivery, including VAT","Year THREE       Supply and delivery, including VAT"]
["G6","PROJECT # 10 : Sound-to-light Controller  Kit consisting of sub-items 1.1. to 1.26  (Price per kit including VAT and delivery)"]
["6.1","23 x 560 kΩ/1 W - R1"]
["6.2","46 x 15 kΩ ¼ W - R2 and R3"]
["6.3","23 x 33 kΩ/¼ W - R4"]
["6.4","69 x 1 kΩ ¼ W - R5, R6 and R9"]
["6.5","23 x 18 kΩ ¼ W - R7"]
["6.6","23 x 560 Ω ¼ W - R8"]
["6.7","23 x 100 kΩ - R10, R11 and R12"]
["6.8","69 x 5 kΩ Pot - P1, P2 and P3"]
["6.9","23 x 0,47 uF 630 V - C1"]
["6.10","46 x 0,1 μF/220 V - C2 and C5 "]
["6.11","23 x 1 000 μF/16 V - C3"]
["6.12","23 x 100 μF/16 V - C4"]
["6.13","23 x 25 μF/6 V - C6"]
[null,"COMPANY NAME: ……………………………………………………………...…"]
[null,"SIGNATURE: ……………………………………………...."]
[null,"MATERIALS TO BE DELIVERED TO EACH OF THE 6 SCHOOLS LISTED ABOVE ","Year ONE         Supply and delivery, including VAT","Year TWO       Supply and delivery, including VAT","Year THREE       Supply and delivery, including VAT"]
["6.14","23 x 1 μF 16 V - C7"]
["6.15","23 x 0,047 μF/630V - C8 and C12"]
["6.16","23 x 22 μF 16 V - C9"]
["6.17","23 x 47 μF 16 V - C11"]
["6.18","23 x 1N4004 - D1 and D2"]
["6.19","23 x 1N4742 12v/1 W - D3"]
["6.20","23 x 10 A fuse 220 V - F1"]
["6.21","23 x 100 mA fuse 220 V - F2"]
["6.22","69 x 220 V 3 A fuse - F3, F4 and F5 "]
["6.23","23 x 40 μH 6 A - L1"]
["6.24","69 x 60 W incandescent lamp - B1, B2 and B3"]
["6.25","23 x low-impedance microphone - Mic"]
["6.26","4 meter x 0,5 mm connecting wires"]
[null,"Sub-Total + VAT for DIGITAL SYSTEMS (G1 + G2 + G3 + G4 + G5 + G6) packed in 23 small packages for ONE school",{"$f":"C380+C363+C326+C315+C302+C291","v":0},{"$f":"D380+D363+D326+D315+D302+D291","v":0},0]
[null,"DIGITAL SYSTEMS: TOTAL + VAT & DELIVERY OF  PROJECTS 1 TO 6 FOR 6 SCHOOLS",{"$f":"(C410*6)","v":0},{"$f":"(D410*6)","v":0},0]
[null,"COMPANY NAME: ………………………………………        SIGNATURE: …………………………………………"]
[]
["H","ELECTRONICS"]
[1,"SASOLBURG: HTS Sasolburg, Sasolburg "]
[2,"PARYS: Barnard Molokoane Comprehensive School, Tumahole"]
[3,"KROONSTAD: Thakameso Comprehensive, Maokeng "]
[4,"WELKOM: HTS Welkom, Welkom"]
[5,"WELKOM: Leseding THS, Thabong"]
[6,"BLOEMFONTEIN: HTS Louis Botha, Bloemfontein"]
[7,"BLOEMFONTEIN: Commtech Comprehensive School, Mangaung"]
[8,"BLOEMFONTEIN: Hodisa THS, Rocklands, Mangaung"]
[9,"BOTSHABELO: Lenyora la Thuto Comprehensive School, Botshabelo"]
[10,"BETHLEHEM: Bethlehem Comprehensive School, Thabong"]
[11,"QWAQWA, PHUTHADITJHABA: Makabelane Comprehensive School, Qwaqwa"]
[12,"SENEKAL: EE Monese Secondary School, Matwabeng"]
[13,"HARRISMITH: Lerato Uthando Comprehensive School, Intabazwe"]
[null,"COMPANY NAME: ……………………………………………………………...…"]
[null,"SIGNATURE: ……………………………………………...."]
[]
[]
[null,"MATERIALS TO BE DELIVERED TO EACH OF THE 13 SCHOOLS LISTED ABOVE ","Year ONE         Supply and delivery, including VAT","Year TWO       Supply and delivery, including VAT","Year THREE       Supply and delivery, including VAT"]
["H1","PROJECT 1: RLC series circuit  Kit consisting of sub-items 1.1. to 1.3  (Price per kit including VAT and delivery)"]
["1.1","22 x R1: 100 Ω resistor "]
["1.2","22 x L1: 10 mH inductor "]
["1.3","22 x C1: 10 μF capacitor "]
["H2","PROJECT 2: Inverting op amp  Kit (one per school) consisting of sub-items 2.1. to 2.5"]
["2.1","22 x LM 741 op-amp "]
["2.2","44 x 10 kΩ for RIN and RF "]
["2.3","22 x 15 kΩ, 22 kΩ, 33 kΩ, 47 kΩ, "]
["2.4","22 x 56 kΩ and 82 kΩ for RF "]
["2.5","4 meter x 0,5 mm connecting wires"]
[null,"COMPANY NAME: ……………………………………………………………...…"]
[null,"SIGNATURE:……………………………………………...."]
[]
[null,"MATERIALS TO BE DELIVERED TO EACH OF THE 13 SCHOOLS LISTED ABOVE ","Year ONE         Supply and delivery, including VAT","Year TWO       Supply and delivery, including VAT","Year THREE       Supply and delivery, including VAT"]
["H3","PROJECT # 3:Dual voltage power supply  Kit consisting of sub-items 3.1. to 3.15  (Price per kit including VAT and delivery)"]
["3.1","22 x transformer 240 to 15-0-15 volt "]
["3.2","22 x - 4 x 1n4001 "]
["3.3","44 x 2 200 uF/25v "]
["3.4","44 x 10 uF/25v "]
["3.5","22 x 3,3 kΩ "]
["3.6","22 x red LED "]
["3.7","44 x heat sink "]
["3.8","44 x 3 pin terminal block "]
["3.9","22 x 7812 voltage regulator IC "]
["3.10","22 x 7912 voltage regulator IC "]
["3.11","22 x toggle switch "]
["3.12","22 x in-line fuse and holder "]
[null,"COMPANY NAME: ……………………………………………………………...…"]
[null,"SIGNATURE:……………………………………………...."]
[null,"MATERIALS TO BE DELIVERED TO EACH OF THE 13 SCHOOLS LISTED ABOVE ","Year ONE         Supply and delivery, including VAT","Year TWO       Supply and delivery, including VAT","Year THREE       Supply and delivery, including VAT"]
["3.13","22 m mains supply cable "]
["3.14","22 x 3 pin plug "]
["3.15","22 x PCB "]
["H4","PROJECT # 4 : 741 Bistable Multivibrator Kit consisting of sub-items 4.1. to 4.11  (Price per kit including VAT and delivery)"]
["4.1","28 x Resistor 1/4 Watt 5% 470 Ώ "]
["4.2","14 x Resistor 1/4 Watt 5% 560 Ώ"]
["4.3","42 x Resistor 1/4 Watt 5% 1 kΏ "]
["4.4","14 x Electrolytic Capacitor 25 V 10 μF"]
["4.5","14 x IC LM741 "]
["4.6","14 x IC Holder x 8 pin Standard"]
["4.7","14 x LED Red 5 mm"]
["4.8","14 x LED Green 5 mm"]
[null,"COMPANY NAME: ……………………………………………………………...…"]
[null,"SIGNATURE: ……………………………………………...."]
[]
[null,"MATERIALS TO BE DELIVERED TO EACH OF THE 13 SCHOOLS LISTED ABOVE ","Year ONE         Supply and delivery, including VAT","Year TWO       Supply and delivery, including VAT","Year THREE       Supply and delivery, including VAT"]
["4.9","28 x Tact Switch 3,5 mm "]
["4.10","14 x Veroboard 10 cm x 5  cm"]
["4.11","4 meter x 0,5 mm connecting wires"]
["H5","PROJECT # 5 : Sound-to-light Controller  Kit consisting of sub-items 1.1. to 1.26  (Price per kit including VAT and delivery)"]
["5.1","22 x 560 kΩ/1 W - R1"]
["5.2","44 x 15 kΩ ¼ W - R2 and R3"]
["5.3","22 x 33 kΩ/¼ W - R4"]
["5.4","66 x 1 kΩ ¼ W - R5, R6 and R9"]
["5.5","22 x 18 kΩ ¼ W - R7"]
["5.6","22 x 560 Ω ¼ W - R8"]
["5.7","66 x 100 kΩ - R10, R11 and R12"]
[null,"COMPANY NAME: ……………………………………………………………...…"]
[null,"SIGNATURE: ……………………………………………...."]
[]
[null,"MATERIALS TO BE DELIVERED TO EACH OF THE 13 SCHOOLS LISTED ABOVE ","Year ONE         Supply and delivery, including VAT","Year TWO       Supply and delivery, including VAT","Year THREE       Supply and delivery, including VAT"]
["5.8","66 x 5 kΩ Pot - P1, P2 and P3"]
["5.9","22 x 0,47 uF 630 V - C1"]
["5.10","44 x 0,1 μF/220 V - C2 and C5"]
["5.11","22 x 1 000 μF/16 V - C3"]
["5.12","22 x 100 μF/16 V - C4"]
["5.13","22 x 25 μF/6 V - C6"]
["5.14","22 x 1 μF 16 V - C7"]
["5.15","44 x 0,047 μF/630V - C8 and C12"]
["5.16","22 x 22 μF 16 V - C9"]
["5.17","22 x 47 μF 16 V - C11"]
["5.18","44 x 1N4004 - D1 and D2"]
["5.19","22 x 1N4742 12v/1 W - D3"]
["5.20","22 x 10 A fuse 220 V - F1"]
["5.21","22 x 100 mA fuse 220 V - F2"]
["5.22","66 x 220 V 3 A fuse - F3, F4 and F5"]
["5.23","22 x 40 μH 6 A - L1"]
[null,"COMPANY NAME: …………………..……………………………  "]
[null,"SIGNATURE: …………………………………"]
[null,"MATERIALS TO BE DELIVERED TO EACH OF THE 13 SCHOOLS LISTED ABOVE ","Year ONE         Supply and delivery, including VAT","Year TWO       Supply and delivery, including VAT","Year THREE       Supply and delivery, including VAT"]
["5.24","66 x 60 W incandescent lamp - B1, B2 and B3"]
["5.25","22 x low-impedance microphone - Mic"]
["5.26","4 meter x 0,5 mm connecting wires"]
[null,"Sub-Total + VAT for ELECTRONICS (H1 + H2 + H3 + H4 + H5) packed in 22 small packages for ONE school",{"$f":"C482+C466+C447+C437+C433","v":0},{"$f":"D482+D466+D447+D437+D433","v":0},{"$f":"E482+E466+E447+E437+E433","v":0}]
[null,"ELECTRONICS: TOTAL + VAT & DELIVERY OF  PROJECTS 1 TO 5 FOR 13 SCHOOLS",{"$f":"C516*13","v":0},{"$f":"D516*13","v":0},0]
[]
[null,"COMPANY NAME: ……………………………………………………………...…"]
[null,"SIGNATURE: ……………………………………………...."]
{"$rows_empty":9}
["I","POWER SYSTEMS"]
[1,"SASOLBURG: HTS Sasolburg "]
[2,"SASOLBURG:  Iketsetseng Comprhensive School, Zamdela"]
[3,"SASOLBURG: Thuto Ke Lesedi Technical School"]
[4,"PARYS: Barnard Molokoane Comprehensive School, Phumahole"]
[5,"KROONSTAD: Kroonstad Comprehensive School"]
[6,"KROONSTAD: Dr Reginald Cingo Comprehensive School, Maokeng"]
[7,"KROONSTAD: Thakameso Comprehensive School, Maokeng"]
[8,"WELKOM: HTS Welkom"]
[9,"WELKOM: Leseding THS, Thabong"]
[10,"WELKOM: Lenakeng Comprehensive School, Thabong"]
[11,"BOTHAVILLE: Oziel Selele Comprehensive School, Kgotsong"]
[12,"HOOPSTAD: Tikwana Comprehensive School, Tikwana "]
[13,"KOFFIEFONTEIN: Koffiefontein Comprehensive School"]
[14,"BLOEMFONTEIN: HTS Louis Botha"]
[15,"BLOEMFONTEIN: Sand du Plessis Comprehensive School"]
[16,"BLOEMFONTEIN: Heatherdale Comprehensive School, Heidedal"]
[17,"BLOEMFONTEIN: Hodisa THS, Rocklands, Mangaung"]
[18,"BLOEMFONTEIN: Commtech Comprehensive School, Mangaung"]
[19,"BLOEMFONTEIN: Kagisho Comprehensive School, Mangaung"]
[20,"BOTSHABELO: Lenyora la Thuto Comprehensive school"]
[21,"FICKSBURG: Ficksburg Comprehensive School"]
[22,"BETHLEHEM:: Bethlehem Comprehensive School, Bohlokong"]
[23,"SENEKAL: EE Monese Secondary School"]
[24,"QWAQWA, PHUTHADITJHABA: Makabelane Comprehensive School"]
[25,"QWAQWA, PHUTHADITJHABA: Morena Mokopela Comprehensive School"]
[26,"HARRISMITH: Lerato Uthandu Comprehensive School, Fourty Second Township"]
[null,"COMPANY NAME: …………………..……………………………  SIGNATURE: …………………………………"]
[]
[null,"MATERIALS TO BE DELIVERED TO EACH OF THE 26 SCHOOLS LISTED ABOVE ","Year ONE         Supply and delivery, including VAT","Year TWO       Supply and delivery, including VAT","Year THREE       Supply and delivery, including VAT"]
["I1","PROJECT 1: Sound-to-light Controller  Kit consisting of sub-items 1.1. to 1.26  (Price per kit including VAT and delivery)"]
["1.1","20 x 560 kΩ/1 W - R1"]
["1.2","40 x 15 kΩ ¼ W - R2 and R3"]
["1.3","20 x 33 kΩ/¼ W - R4"]
["1.4"," 60 x 1 kΩ ¼ W - R5, R6 and R9"]
["1.5","20 x 18 kΩ ¼ W - R7"]
["1.6","20 x 560 Ω ¼ W - R8"]
["1.7","60 x 100 kΩ - R10, R11 and R12"]
["1.8","60 x 5 kΩ Pot - P1, P2 and P3"]
["1.9","20 x 0,47 uF 630 V - C1"]
["1.10","40 x 0,1 μF/220 V - C2 and C5"]
["1.11","20 x 1 000 μF/16 V - C3"]
["1.12","20 x 100 μF/16 V - C4"]
["1.13","20 x 25 μF/6 V - C6"]
["1.14"," 20 x 1 μF 16 V - C7"]
[null,"COMPANY NAME: ……………………………………………………………...…"]
[null,"SIGNATURE: ……………………………………………...."]
[null,"MATERIALS TO BE DELIVERED TO EACH OF THE 26 SCHOOLS LISTED ABOVE ","Year ONE         Supply and delivery, including VAT","Year TWO       Supply and delivery, including VAT","Year THREE       Supply and delivery, including VAT"]
["1.15","40 x 0,047 μF/630V - C8 and C12"]
["1.16","20 x 22 μF 16 V - C9"]
["1.17","20 x 47 μF 16 V - C11"]
["1.18"," 40 x 1N4004 - D1 and D2"]
["1.19","20 x 1N4742 12v/1 W - D3"]
["1.20","20 x 10 A fuse 220 V - F1"]
["1.21","20 x 100 mA fuse 220 V - F2"]
["1.22","60 x 220 V 3 A fuse - F3, F4 and F5"]
["1.23"," 20 x 40 μH 6 A - L1"]
["1.24","60 x 60 W incandescent lamp - B1, B2 and B3"]
["1.25"," 20 x low-impedance microphone - Mic "]
["1.26","4 meter x 0,5 mm connecting wires"]
[null,"COMPANY NAME: ……………………………………………………………...…"]
[null,"SIGNATURE: ……………………………………………...."]
[]
[null,"MATERIALS TO BE DELIVERED TO EACH OF THE 26 SCHOOLS LISTED ABOVE ","Year ONE         Supply and delivery, including VAT","Year TWO       Supply and delivery, including VAT","Year THREE       Supply and delivery, including VAT"]
["I2","PROJECT 2: Automatic Battery Charger with Battery-voltage Bar-graph Display kit consisting of sub-items 2.1. to 2.31  (Price per kit including VAT and delivery)"]
["2.1","20 x varistor 14 mm - R1"]
["2.2","20 x 500 ohm, 5 W - R2"]
["2.3","40 x 15 K ¼ W - R3 and R6"]
["2.4","20 x 230 ohm ¼ W - R4"]
["2.5","20 x 1k - R5"]
["2.6","20 x 0,2 ohm, 5 W - R7"]
["2.7","20 x 3k3 ¼ W - R8"]
["2.8","20 x J1 mains supply"]
["2.9","20 x J2 12 V connector for battery/battery clamps"]
["2.10","20 x 1 500 mA fast-blow fuse"]
["2.11","20 x 240 V–16 V transformer 3 A (+/-50 VA) - TR1"]
[]
[null,"COMPANY NAME: ……………………………………………………………...…"]
[null,"SIGNATURE: ……………………………………………...."]
[]
[null,"MATERIALS TO BE DELIVERED TO EACH OF THE 26 SCHOOLS LISTED ABOVE ","Year ONE         Supply and delivery, including VAT","Year TWO       Supply and delivery, including VAT","Year THREE       Supply and delivery, including VAT"]
["2.12","20 x 1k2 ¼ W 5% - R9"]
["2.13","20 x 4k7 ¼ W 5% - R10"]
["2.14","20 x 5k potentiometer - R11"]
["2.15","20 x LED 1–10 LED – red, amber, green"]
["2.16","20 x 5k potentiometer - R12"]
["2.17","20 x 5 A diode bridge - B1"]
["2.18","20 x 6 800 uF 35 V electrolytic capacitor - C1"]
["2.19","20 x 0,1 uF ceramic 104 - C2"]
["2.20","20 x 1 nF ceramic 102 - C3"]
["2.21","20 x 1 uF electrolytic 25 volt - C4"]
["2.22","20 x 1N 4148 diode - D1"]
["2.23","20 x LM350 16 volt positive voltage regulator - IC1"]
["2.24","20 x LM301 H operational amplifier - IC2"]
["2.25","20 x On/Off switch for mains voltage - S1"]
["2.26","20 x push-to-make switch - S2"]
["2.27","20 x LED 1 red LED 5 mm"]
[null,"COMPANY NAME: ……………………………………………………………...…"]
[null,"SIGNATURE: ……………………………………………...."]
[null,"MATERIALS TO BE DELIVERED TO EACH OF THE 26 SCHOOLS LISTED ABOVE ","Year ONE         Supply and delivery, including VAT","Year TWO       Supply and delivery, including VAT","Year THREE       Supply and delivery, including VAT"]
["2.28","20 x LM3914 N bar-graph display driver - IC3"]
["2.29","20 x 10 μF 25 volt electrolytic capacitor - C1"]
["2.30","20 x SPST toggle switch - S1"]
["2.31","4 meter x 0,5 mm connecting wires"]
[null,"Sub-Total + VAT for POWER SYSTEMS (I1 + I2) packed in 20 small packages for ONE school",{"$f":"C594+C560","v":0},{"$f":"D594+D560","v":0},{"$f":"E594+E560","v":0}]
[null,"POWER SYSTEMS: TOTAL + VAT & DELIVERY OF  PROJECTS 1 TO 2 FOR 26 SCHOOLS",{"$f":"C634*26","v":0},{"$f":"D634*26","v":0},0]
[]
[null,"COMPANY NAME: ……………………………………………………………...…"]
[null,"SIGNATURE: ……………………………………………...."]
[]
[]
["J","TECHNICAL SPECIALIZATIONS: APPROPRIATE WORKSHOP CLOTHING"]
[1,"BLOEMFONTEIN: Sinodale Building, Bloemfontein"]
[]
[null,"APPROPRIATE WORKSHOP CLOTHING TO BE DELIVERED TO HEAD OFFICE: SINODALE BUILDING, ST ANDREWS STREET, BLOEMFONTEIN","Year ONE         Supply and delivery, including VAT","Year TWO       Supply and delivery, including VAT","Year THREE       Supply and delivery, including VAT"]
["J1","APPROPRIATE WORKSHOP CLOTHING (Mechanic suits should be emroided FSDOE logo at the front pocket and name of specialization at the back): All appropriate workshop clothing to be delivered to Head Office and it consist of sub-items 1.1. to 1.8  (Price per kit including VAT and delivery)"]
["1.1","8 x XS Flame and Acid resistant Mechanic Suit - 300/310gsm cotton fabric: 1 Navy Blue, 4 Grey and 3 black."]
["1.2","13 x S Flame and Acid resistant Mechanic Suit - 300/310gsm cotton fabric: 2 Navy Blue, 8 Grey and 3 black."]
["1.3","36 x M Flame and Acid resistant Mechanic Suit - 300/310gsm cotton fabric: 16 Navy Blue, 11 Grey and 9 black."]
["1.4","33 x L Flame and Acid resistant Mechanic Suit - 300/310gsm cotton fabric: 14 Navy Blue, 10 Grey and 9 black."]
["1.5","30 x XL Flame and Acid resistant Mechanic Suit - 300/310gsm cotton fabric: 8 Navy Blue, 7 Grey and 15 black."]
["1.6","18 x XXL Flame and Acid resistant Mechanic Suit - 300/310gsm cotton fabric: 7 Navy Blue, 6 Grey and 5 black."]
[null,"COMPANY NAME: ……………………………………………………SIGNATURE: ………………………………………"]
[]
[null,"APPROPRIATE WORKSHOP CLOTHING TO BE DELIVERED TO HEAD OFFICE: SINODALE BUILDING, ST ANDREWS STREET, BLOEMFONTEIN","Year ONE         Supply and delivery, including VAT","Year TWO       Supply and delivery, including VAT","Year THREE       Supply and delivery, including VAT"]
["1.7","11 x XXXL Flame and Acid resistant Mechanic Suit - 300/310gsm cotton fabric: 3 Navy Blue, 3 Grey and 5 black."]
["1.8","149 x Safety Boots - size 3: 14, size 4: 16, size 5: 14, size 6: 21, size 7: 21, size 8: 17, size 9: 20, size 10: 15, size 11: 4, size 12: 3 and size 13: 4."]
[null,"Sub-Total + VAT for Appropriate Workshop Clothing Clothing (J3) packed and delivered to Head Office",{"$f":"C645","v":0},{"$f":"D645","v":0},{"$f":"E645","v":0}]
[null,"APPROPRIATE WORKSHOP CLOTHING: TOTAL + VAT & DELIVERY OF  PROJECT 1 TO HEAD OFFICE: SINODALE BUILDING",{"$f":"C657","v":0},{"$f":"D657","v":0},0]
[]
[]
[null,"COMPANY NAME: ……………………………………………………………...…"]
[null,"SIGNATURE: ……………………………………………...."]
[]
[]
["K","WELDING: SCHOOLS OF SKILLS"]
[1,"SASOLBURG: Fakkel Skool, Sasolburg"]
[2,"KROONSTAD: Johan Slabbert Spesiale Skool, Kroonstad"]
[3,"VIRGINIA: Nobilis School, Virginia"]
[4,"WELKOM: Orion Skool, Welkom"]
[5,"BLOEMFONTEIN: Bohmer Secondary School, Bloemfontein"]
[6,"LADYBRAND: Ladybrand Special School, Ladybrand"]
[7,"BOTSHABELO: Qelo, Botshabelo"]
[8,"BETHLEHEM: Maluti Hooglandskool, Bethlehem"]
[]
[null,"MATERIALS TO BE DELIVERED TO EACH OF THE 8 SCHOOLS LISTED ABOVE ","Year ONE         Supply and delivery, including VAT","Year TWO       Supply and delivery, including VAT","Year THREE       Supply and delivery, including VAT"]
["K1","WELDING SCHOOLS OF SKILLS KIT  consisting of sub-items 1.1. to 1.16  (Price per kit including VAT and delivery)"]
["1.1","10 x 6 meter length  x ±10 mm diameter mild steel round bar "]
["1.2","10 x 6 meter length  x ±10 mm diameter mild steel square bar "]
["1.3","10 x 6 meter length  x ±2 x 20 mm dia mild steel hollow round bar/pipe"]
["1.4","10 x 6 meter length  x ±2 x 25 mm dia mild steel hollow round bar/pipe"]
[null,"COMPANY NAME: ……………………………………………………………...…"]
[null,"SIGNATURE: ……………………………………………...."]
[null,"MATERIALS TO BE DELIVERED TO EACH OF THE 8 SCHOOLS LISTED ABOVE ","Year ONE         Supply and delivery, including VAT","Year TWO       Supply and delivery, including VAT","Year THREE       Supply and delivery, including VAT"]
["1.5","15 x 6 meter length  ± 2 x 20 x 20 mm mild steel square tube (NOT bar)"]
["1.7","10 x 6 meter length ±3 x 100 x 100 mm mild steel square tube (NOT bar)"]
["1.8","6 x 6 meter length  x ±3 x 30 mm mild steel flat bar "]
["1.9","10 x 6 meter length  x ±3 x 50 mm mild steel flat bar "]
["1.10","10 x 6 meter length x ±3 x 30 x 30 mm mild steel Angle Iron"]
["1.11","10 x 6 meter length x ± 2 x 38 x 38 mm mild steel Angle Iron"]
[1.12,"5 sheets ±1220 x 2440 mm x ±1,5 mm thick hot rolled m/s sheet"]
["1.13","5 sheets ±1220 x 2440 mm x ± 2,0mm thick diamond mesh 15 mm x 40mm sheet"]
[1.14,"4 x 5kg ± 2,5 sq mm Arc Welding electrodes "]
[1.15,"4 x 5kg ± 3,0 sq mm Arc Welding electrodes "]
[null,"COMPANY NAME: ……………………………………………………………...…"]
[null,"SIGNATURE: ……………………………………………...."]
[null,"MATERIALS TO BE DELIVERED TO EACH OF THE 8 SCHOOLS LISTED ABOVE ","Year ONE         Supply and delivery, including VAT","Year TWO       Supply and delivery, including VAT","Year THREE       Supply and delivery, including VAT"]
[1.16,"1 x 5kg ± 3 sq mm Brazing rods for gas welding"]
[null,"SUB-TOTAL for ONE WELDING KIT (K1) including VAT and Delivery to ONE school",{"$f":"C676","v":{"v":0,"d":"R0.00"}},{"$f":"D676","v":{"v":0,"d":"R0.00"}},{"$f":"E676","v":{"v":0,"d":"R0.00"}}]
[null,"WELDING: TOTAL + VAT & DELIVERY OF  PROJECTS 1 FOR 8 SCHOOLS",{"$f":"C698*8","v":{"v":0,"d":"R0.00"}},{"$f":"D698*8","v":{"v":0,"d":"R0.00"}},{"$f":"E698*8","v":{"v":0,"d":"R0.00"}}]
[]
["L","WOODWORKING: SCHOOLS OF SKILLS"]
[1,"SASOLBURG: Fakkel Skool, Sasolburg"]
[2,"KROONSTAD: Johan Slabbert Spesiale Skool, Kroonstad"]
[3,"VIRGINIA: Nobilis School, Virginia"]
[4,"WELKOM: Orion Skool, Welkom"]
[5,"BLOEMFONTEIN: Bohmer Secondary School, Bloemfontein"]
[6,"LADYBRAND: Ladybrand Special School, Ladybrand"]
[7,"BETHLEHEM: Maluti Hooglandskool, Bethlehem"]
[null,"COMPANY NAME: ……………………………………………………………...…"]
[null,"SIGNATURE: ……………………………………………...."]
[null,"MATERIALS TO BE DELIVERED TO EACH OF THE 7 SCHOOLS LISTED ABOVE ","Year ONE         Supply and delivery, including VAT","Year TWO       Supply and delivery, including VAT","Year THREE       Supply and delivery, including VAT"]
["L1","WOODWORKING SCHOOLS OF SKILLS KIT (consisting of sub-items 1.1. to 1.8  (Price per kit including VAT and delivery)"]
["1.1","20 x Meranti Hardwood ±152 x 25 mm x 2,7 meter lengths"]
["1.2","20 x Meranti Hardwood ±152 x 25 mm x 2,4 meter lengths"]
["1.3","20 x Meranti Hardwood ±152 x 38 mm x 3,35 meter lengths"]
["1.4","20 x Meranti Hardwood ±152 x 38 mm x 4,6 meter lengths"]
["1.5","10 x paint brushes set (12mm, 25mm, 38mm, 50mm, 63mm pack)"]
["1.6","10 Litre Gripseal wood sealant"]
["1.7","10 x sponge brushes/"]
["1.8","10 x ±1litre Cold Wood Glue"]
[null,"COMPANY NAME: ……………………………………………………………...…"]
[null,"SIGNATURE: ……………………………………………...."]
[null,"SUB-TOTAL for ONE WOODWORKING KIT (L1) including VAT and Delivery to ONE school",{"$f":"C712","v":{"v":0,"d":"R0.00"}},{"$f":"D712","v":{"v":0,"d":"R0.00"}},{"v":0,"d":"R0.00"}]
[null,"TOTAL including VAT and Delivery to 7 schools",{"$f":"C723*7","v":{"v":0,"d":"R0.00"}},{"$f":"D723*7","v":{"v":0,"d":"R0.00"}},{"v":0,"d":"R0.00"}]
[]
["M","PLUMBING: SCHOOLS OF SKILLS"]
[1,"WELKOM: Orion Skool, Welkom"]
[2,"BOTSHABELO: Qelo, Botshabelo"]
[]
[null,"MATERIALS TO BE DELIVERED TO EACH OF THE 2 SCHOOLS LISTED ABOVE ","Year ONE         Supply and delivery, including VAT","Year TWO       Supply and delivery, including VAT","Year THREE       Supply and delivery, including VAT"]
["M1","PLUMBING SCHOOLS OF SKILLS KIT consisting of sub-items 1.1. to 1.10  (Price per kit including VAT and delivery)"]
["1.1","10 x Copper water tubing 15 mm class 1 x 4 to 6 meter lengths "]
["1.2","20 x Copper swett on elbows 15 mm"]
["1.3","20 x Copper swett on T-fittings 15 mm"]
[null,"COMPANY NAME: ……………………………………………………………...…"]
[null,"SIGNATURE: ……………………………………………...."]
[null,"MATERIALS TO BE DELIVERED TO EACH OF THE 2 SCHOOLS LISTED ABOVE ","Year ONE         Supply and delivery, including VAT","Year TWO       Supply and delivery, including VAT","Year THREE       Supply and delivery, including VAT"]
["1.4","10 x Solder wire resin core 250 gramm"]
["1.5","5 x flux past"]
["1.6","10 x Galvanised pipe, 4 meter length, Ø 15 mm "]
["1.7","10 x Galvanised elbow, Ø 15 mm"]
["1.8","10 x Galvanised T piece,  Ø 15 mm"]
["1.9","5 x Hemp (thread-sealing material), 50 g"]
["1.10","10 x Galvanised sheeting 2400 x 2100 x 0,6 mm thickness"]
[null,"SUB-TOTAL for ONE PLUMBING KIT (M1) including VAT and Delivery to ONE school",{"$f":"C731","v":{"v":0,"d":"R0.00"}},{"$f":"D731","v":{"v":0,"d":"R0.00"}},{"$f":"E731","v":{"v":0,"d":"R0.00"}}]
[null,"TOTAL including VAT and Delivery to 2 schools",{"$f":"C745*2","v":{"v":0,"d":"R0.00"}},{"$f":"D745*2","v":{"v":0,"d":"R0.00"}},{"v":0,"d":"R0.00"}]
[null,"COMPANY NAME: ………………………………………………… "]
[null,"SIGNATURE: ……………………………………"]
[]
[null,"MATERIALS TO BE DELIVERED TO SCHOOLS AS SPECIFIED","Year ONE         Supply and delivery, including VAT","Year TWO       Supply and delivery, including VAT","Year THREE       Supply and delivery, including VAT"]
[null,"TOTAL  INCLUDING VAT & DELIVERY OF  ALL MATERIALS (A TO L) TO SCHOOLS AS SPECIFIED AND M TO HEAD OFFICE",{"$f":"C746+C724+C699+C658+C517+C411+C276+C223+C190+C153+C100+C38","v":{"v":0,"d":"R0.00"}},{"$f":"D746+D724+D699+D658+D517+D411+D276+D223+D190+D153+D100+D38","v":{"v":0,"d":"R0.00"}},{"$f":"E746+E724+E699+E658+E517+E411+E276+E223+E190+E153+E100+E38","v":{"v":0,"d":"R0.00"}}]
[null,"GRAND TOTAL YEAR 1 + YEAR 2 + YEAR 3",{"$f":"SUM(C751+D751+E751)","v":{"v":0,"d":"R0.00"}}]
[null,"COMPANY NAME: ………………………………………………… SIGNATURE: ……………………………………"]
[]
[null,"ANY ENQUIRIES REGARDING TECHNICAL INFORMATION/SPECIFICATIONS MAY BE DIRECTED TO:"]
[null,"Contact person:       Mr M Thabanyane"]
[null,"Tel.:                         0632946209"]
[null,"email:   curriculum.fet@fseducation.gov.za"]